[Event "Titled Tuesday Blitz December 13 Early 2022"]
[White "Steinberg, Nitzan"]
[Black "Rakhmatullaev, Almas"]
[WhiteFideId "2801795"]
[BlackFideId "14205793"]
[WhiteElo "2491"]
[BlackElo "2221"]
[Result "0-1"]
[Round "06"]
[TimeControl "180+1"]
[Date "2022.12.13"]
[WhiteClock "0:00:07"]
[BlackClock "0:00:10"]

1. Nf3 {[%clk 0:03:00]}  Nf6 {[%clk 0:02:59]} 2. g3 {[%clk 0:03:01]}  g6 {[%clk 0:03:00]} 3. Bg2 {[%clk 0:03:02]}  Bg7 {[%clk 0:03:01]} 4. O-O {[%clk 0:03:02]}  O-O {[%clk 0:03:02]} 5. c4 {[%clk 0:03:01]}  c6 {[%clk 0:03:02]} 6. d4 {[%clk 0:03:00]}  d6 {[%clk 0:03:02]} 7. Nc3 {[%clk 0:03:00]}  Bf5 {[%clk 0:03:02]} 8. b3 {[%clk 0:03:00]}  Ne4 {[%clk 0:02:59]} 9. Bb2 {[%clk 0:03:00]}  Nxc3 {[%clk 0:02:53]} 10. Bxc3 {[%clk 0:03:01]}  d5 {[%clk 0:02:54]} 11. Rc1 {[%clk 0:02:49]}  Be4 {[%clk 0:02:52]} 12. e3 {[%clk 0:02:46]}  Nd7 {[%clk 0:02:49]} 13. Nd2 {[%clk 0:02:45]}  Bxg2 {[%clk 0:02:48]} 14. Kxg2 {[%clk 0:02:46]}  e6 {[%clk 0:02:49]} 15. Qe2 {[%clk 0:02:44]}  Re8 {[%clk 0:02:46]} 16. Rfd1 {[%clk 0:02:39]}  Rc8 {[%clk 0:02:46]} 17. Qf3 {[%clk 0:02:32]}  f5 {[%clk 0:02:39]} 18. Qe2 {[%clk 0:02:25]}  Nf6 {[%clk 0:02:36]} 19. Bb2 {[%clk 0:02:24]}  Ne4 {[%clk 0:02:29]} 20. Nf3 {[%clk 0:02:24]}  Qa5 {[%clk 0:02:22]} 21. a3 {[%clk 0:02:22]}  Qb6 {[%clk 0:02:22]} 22. b4 {[%clk 0:02:22]}  Qa6 {[%clk 0:02:17]} 23. Rc2 {[%clk 0:02:11]}  Nd6 {[%clk 0:02:05]} 24. Nd2 {[%clk 0:02:11]}  Rcd8 {[%clk 0:01:37]} 25. Rdc1 {[%clk 0:02:06]}  dxc4 {[%clk 0:01:32]} 26. Nxc4 {[%clk 0:02:06]}  Nxc4 {[%clk 0:01:31]} 27. Rxc4 {[%clk 0:02:06]}  Qb5 {[%clk 0:01:16]} 28. Qf3 {[%clk 0:01:47]}  Qd5 {[%clk 0:00:58]} 29. Rc5 {[%clk 0:01:47]}  Qxf3+ {[%clk 0:00:50]} 30. Kxf3 {[%clk 0:01:48]}  a6 {[%clk 0:00:51]} 31. R5c4 {[%clk 0:01:43]}  e5 {[%clk 0:00:49]} 32. Rd1 {[%clk 0:01:15]}  Rd5 {[%clk 0:00:39]} 33. Rc5 {[%clk 0:01:05]}  Rxc5 {[%clk 0:00:22]} 34. bxc5 {[%clk 0:01:04]}  exd4 {[%clk 0:00:22]} 35. exd4 {[%clk 0:00:59]}  Re4 {[%clk 0:00:20]} 36. Bc3 {[%clk 0:00:57]}  Kf7 {[%clk 0:00:20]} 37. Rb1 {[%clk 0:00:34]}  Re7 {[%clk 0:00:20]} 38. a4 {[%clk 0:00:24]}  g5 {[%clk 0:00:16]} 39. h3 {[%clk 0:00:24]}  h5 {[%clk 0:00:13]} 40. g4 {[%clk 0:00:24]}  hxg4+ {[%clk 0:00:13]} 41. hxg4 {[%clk 0:00:25]}  Kg6 {[%clk 0:00:14]} 42. Rg1 {[%clk 0:00:14]}  Rf7 {[%clk 0:00:11]} 43. Ke3 {[%clk 0:00:09]}  Re7+ {[%clk 0:00:07]} 44. Kd3 {[%clk 0:00:10]}  Rf7 {[%clk 0:00:07]} 45. Bd2 {[%clk 0:00:09]}  fxg4 {[%clk 0:00:05]} 46. Rxg4 {[%clk 0:00:08]}  Rxf2 {[%clk 0:00:05]} 47. Rxg5+ {[%clk 0:00:09]}  Kf7 {[%clk 0:00:06]} 48. Rg4 {[%clk 0:00:05]}  Rf3+ {[%clk 0:00:04]} 49. Kc4 {[%clk 0:00:04]}  Rf5 {[%clk 0:00:04]} 50. Rg1 {[%clk 0:00:03]}  Rd5 {[%clk 0:00:04]} 51. Rb1 {[%clk 0:00:04]}  Rxd4+ {[%clk 0:00:04]} 52. Kc3 {[%clk 0:00:04]}  Rd5+ {[%clk 0:00:04]} 53. Kc2 {[%clk 0:00:02]}  Rxc5+ {[%clk 0:00:04]} 54. Kd3 {[%clk 0:00:03]}  Rd5+ {[%clk 0:00:04]} 55. Ke2 {[%clk 0:00:03]}  b5 {[%clk 0:00:04]} 56. axb5 {[%clk 0:00:03]}  axb5 {[%clk 0:00:05]} 57. Be3 {[%clk 0:00:04]}  Ke6 {[%clk 0:00:04]} 58. Rg1 {[%clk 0:00:05]}  Be5 {[%clk 0:00:05]} 59. Rg6+ {[%clk 0:00:05]}  Kd7 {[%clk 0:00:05]} 60. Kf3 {[%clk 0:00:05]}  b4 {[%clk 0:00:06]} 61. Ke4 {[%clk 0:00:06]}  b3 {[%clk 0:00:06]} 62. Rg1 {[%clk 0:00:04]}  b2 {[%clk 0:00:06]} 63. Rb1 {[%clk 0:00:05]}  Ke6 {[%clk 0:00:06]} 64. Bf4 {[%clk 0:00:04]}  Rd4+ {[%clk 0:00:06]} 65. Ke3 {[%clk 0:00:04]}  Rxf4 {[%clk 0:00:07]} 66. Rxb2 {[%clk 0:00:04]}  Bxb2 {[%clk 0:00:07]} 67. Kxf4 {[%clk 0:00:05]}  Kd5 {[%clk 0:00:07]} 68. Ke3 {[%clk 0:00:05]}  Kc4 {[%clk 0:00:08]} 69. Kd2 {[%clk 0:00:06]}  Kb3 {[%clk 0:00:08]} 70. Kd1 {[%clk 0:00:06]}  c5 {[%clk 0:00:09]} 71. Kd2 {[%clk 0:00:07]}  c4 {[%clk 0:00:10]} 0-1


[Site "https://www.chess.com"]

[Event "Titled Tuesday Blitz December 13 Early 2022"]
[White "Tarasova, Viktoriya"]
[Black "Fromm, Marius"]
[WhiteFideId "4175840"]
[BlackFideId "12993190"]
[WhiteElo "2182"]
[BlackElo "2325"]
[Result "0-1"]
[Round "06"]
[TimeControl "180+1"]
[Date "2022.12.14"]
[WhiteClock "0:01:05"]
[BlackClock "0:01:37"]

1. d4 {[%clk 0:02:53]}  Nf6 {[%clk 0:02:59]} 2. c4 {[%clk 0:02:53]}  e6 {[%clk 0:03:00]} 3. Nc3 {[%clk 0:02:53]}  c5 {[%clk 0:03:01]} 4. d5 {[%clk 0:02:52]}  exd5 {[%clk 0:03:02]} 5. cxd5 {[%clk 0:02:53]}  d6 {[%clk 0:03:03]} 6. Nf3 {[%clk 0:02:52]}  g6 {[%clk 0:03:04]} 7. Bf4 {[%clk 0:02:52]}  Bg7 {[%clk 0:03:04]} 8. h3 {[%clk 0:02:52]}  O-O {[%clk 0:03:03]} 9. e3 {[%clk 0:02:53]}  Qe7 {[%clk 0:03:02]} 10. Nd2 {[%clk 0:02:45]}  Nh5 {[%clk 0:03:02]} 11. Bh2 {[%clk 0:02:44]}  f5 {[%clk 0:03:02]} 12. Be2 {[%clk 0:02:45]}  f4 {[%clk 0:03:03]} 13. e4 {[%clk 0:02:40]}  Nd7 {[%clk 0:02:38]} 14. O-O {[%clk 0:02:37]}  Ne5 {[%clk 0:02:37]} 15. Nf3 {[%clk 0:02:25]}  Kh8 {[%clk 0:02:16]} 16. Nxe5 {[%clk 0:02:14]}  Bxe5 {[%clk 0:02:17]} 17. Bf3 {[%clk 0:02:15]}  Nf6 {[%clk 0:02:12]} 18. Rc1 {[%clk 0:02:12]}  Bd7 {[%clk 0:02:10]} 19. a4 {[%clk 0:02:08]}  a6 {[%clk 0:02:05]} 20. a5 {[%clk 0:02:03]}  Rab8 {[%clk 0:02:05]} 21. Na4 {[%clk 0:01:59]}  g5 {[%clk 0:01:58]} 22. b4 {[%clk 0:01:46]}  Bb5 {[%clk 0:01:50]} 23. Re1 {[%clk 0:01:45]}  cxb4 {[%clk 0:01:48]} 24. Rb1 {[%clk 0:01:26]}  h5 {[%clk 0:01:38]} 25. Bxh5 {[%clk 0:01:23]}  Bxa4 {[%clk 0:01:37]} 26. Qxa4 {[%clk 0:01:22]}  Nxh5 {[%clk 0:01:37]} 27. Qxb4 {[%clk 0:01:21]}  f3 {[%clk 0:01:35]} 28. Bxe5+ {[%clk 0:01:19]}  Qxe5 {[%clk 0:01:36]} 29. Qb2 {[%clk 0:01:04]}  Qxb2 {[%clk 0:01:36]} 30. Rxb2 {[%clk 0:01:05]}  fxg2 {[%clk 0:01:37]} 31. Kxg2 {[%clk 0:01:05]}  Nf4+ {[%clk 0:01:37]} 0-1


[Site "https://www.chess.com"]

[Event "Titled Tuesday Blitz December 13 Early 2022"]
[White "Torres Boch, Jose Francisco"]
[Black "Crevatin, Leo"]
[WhiteFideId "2278383"]
[BlackFideId "1726307"]
[WhiteElo "2073"]
[BlackElo "2190"]
[Result "0-1"]
[Round "06"]
[TimeControl "180+1"]
[Date "2022.12.14"]
[WhiteClock "0:00:05"]
[BlackClock "0:01:09"]

1. e4 {[%clk 0:01:57]}  c5 {[%clk 0:02:58]} 2. Nf3 {[%clk 0:01:57]}  d6 {[%clk 0:02:58]} 3. d4 {[%clk 0:01:57]}  cxd4 {[%clk 0:02:59]} 4. Nxd4 {[%clk 0:01:58]}  Nf6 {[%clk 0:03:00]} 5. Nc3 {[%clk 0:01:58]}  Nc6 {[%clk 0:03:00]} 6. Bg5 {[%clk 0:01:58]}  e6 {[%clk 0:03:00]} 7. Qd2 {[%clk 0:01:59]}  a6 {[%clk 0:03:00]} 8. O-O-O {[%clk 0:01:59]}  Bd7 {[%clk 0:03:01]} 9. f4 {[%clk 0:01:59]}  Be7 {[%clk 0:03:02]} 10. Nf3 {[%clk 0:01:58]}  b5 {[%clk 0:03:02]} 11. a3 {[%clk 0:01:55]}  h6 {[%clk 0:03:00]} 12. Bxf6 {[%clk 0:01:55]}  gxf6 {[%clk 0:02:59]} 13. g3 {[%clk 0:01:51]}  b4 {[%clk 0:02:52]} 14. axb4 {[%clk 0:01:50]}  Nxb4 {[%clk 0:02:53]} 15. Nd5 {[%clk 0:01:45]}  Nxd5 {[%clk 0:02:42]} 16. exd5 {[%clk 0:01:44]}  e5 {[%clk 0:02:43]} 17. Bd3 {[%clk 0:01:39]}  a5 {[%clk 0:02:25]} 18. Qe2 {[%clk 0:01:19]}  a4 {[%clk 0:02:23]} 19. Bb5 {[%clk 0:01:18]}  a3 {[%clk 0:02:20]} 20. bxa3 {[%clk 0:01:17]}  Rxa3 {[%clk 0:02:17]} 21. Bxd7+ {[%clk 0:01:15]}  Qxd7 {[%clk 0:02:17]} 22. Rhf1 {[%clk 0:01:11]}  Qa4 {[%clk 0:02:01]} 23. Rd3 {[%clk 0:01:10]}  Ra1+ {[%clk 0:01:40]} 24. Kd2 {[%clk 0:01:10]}  Rxf1 {[%clk 0:01:41]} 25. Qxf1 {[%clk 0:01:09]}  e4 {[%clk 0:01:41]} 26. Re3 {[%clk 0:01:04]}  exf3 {[%clk 0:01:39]} 27. Qxf3 {[%clk 0:01:03]}  Qa7 {[%clk 0:01:33]} 28. Qg4 {[%clk 0:01:01]}  Kf8 {[%clk 0:01:21]} 29. Qc8+ {[%clk 0:00:59]}  Kg7 {[%clk 0:01:16]} 30. Qg4+ {[%clk 0:00:59]}  Kh7 {[%clk 0:01:10]} 31. Qf5+ {[%clk 0:00:58]}  Kg8 {[%clk 0:01:11]} 32. Qg4+ {[%clk 0:00:17]}  Kf8 {[%clk 0:01:09]} 33. Qc8+ {[%clk 0:00:05]}  Bd8 {[%clk 0:01:09]} 0-1


[Site "https://www.chess.com"]

[Event "Titled Tuesday Blitz December 13 Early 2022"]
[White "Turzo, Attila"]
[Black "Shipov, Sergei"]
[WhiteFideId "704954"]
[BlackFideId "4113624"]
[WhiteElo "2575"]
[BlackElo "2776"]
[Result "0-1"]
[Round "06"]
[TimeControl "180+1"]
[Date "2022.12.14"]
[WhiteClock "0:00:58"]
[BlackClock "0:01:32"]

1. d4 {[%clk 0:03:00]}  Nf6 {[%clk 0:02:58]} 2. c4 {[%clk 0:03:01]}  c5 {[%clk 0:02:58]} 3. d5 {[%clk 0:03:01]}  b5 {[%clk 0:02:59]} 4. cxb5 {[%clk 0:03:00]}  a6 {[%clk 0:02:59]} 5. bxa6 {[%clk 0:03:00]}  g6 {[%clk 0:02:58]} 6. Nc3 {[%clk 0:03:00]}  d6 {[%clk 0:02:58]} 7. e4 {[%clk 0:02:58]}  Bg7 {[%clk 0:02:58]} 8. Nf3 {[%clk 0:02:54]}  Qa5 {[%clk 0:02:57]} 9. Bd2 {[%clk 0:02:48]}  Bxa6 {[%clk 0:02:53]} 10. Bxa6 {[%clk 0:02:46]}  Qxa6 {[%clk 0:02:52]} 11. Qe2 {[%clk 0:02:40]}  O-O {[%clk 0:02:43]} 12. Qxa6 {[%clk 0:02:27]}  Nxa6 {[%clk 0:02:44]} 13. Ke2 {[%clk 0:02:27]}  Rfb8 {[%clk 0:02:44]} 14. Rab1 {[%clk 0:02:00]}  Nd7 {[%clk 0:02:42]} 15. b3 {[%clk 0:01:52]}  Nb4 {[%clk 0:02:36]} 16. a4 {[%clk 0:01:49]}  f5 {[%clk 0:02:30]} 17. exf5 {[%clk 0:01:25]}  Bxc3 {[%clk 0:01:56]} 18. Bxc3 {[%clk 0:01:26]}  Nxd5 {[%clk 0:01:56]} 19. Bd2 {[%clk 0:01:24]}  gxf5 {[%clk 0:01:56]} 20. Ng5 {[%clk 0:01:20]}  Rb7 {[%clk 0:01:50]} 21. Kd3 {[%clk 0:01:19]}  Ne5+ {[%clk 0:01:43]} 22. Kc2 {[%clk 0:01:18]}  c4 {[%clk 0:01:36]} 23. a5 {[%clk 0:01:12]}  c3 {[%clk 0:01:33]} 24. Bc1 {[%clk 0:00:58]}  Rxa5 {[%clk 0:01:32]} 0-1


[Site "https://www.chess.com"]

[Event "Titled Tuesday Blitz December 13 Early 2022"]
[White "Valle Maytin, Luis Enrique"]
[Black "Badelka, Olga"]
[WhiteFideId "3503666"]
[BlackFideId "13509926"]
[WhiteElo "2225"]
[BlackElo "2337"]
[Result "1-0"]
[Round "06"]
[TimeControl "180+1"]
[Date "2022.12.14"]
[WhiteClock "0:00:31"]
[BlackClock "0:00:02"]

1. e4 {[%clk 0:03:00]}  e5 {[%clk 0:03:00]} 2. Nf3 {[%clk 0:02:59]}  Nc6 {[%clk 0:03:00]} 3. Bb5 {[%clk 0:02:59]}  Nf6 {[%clk 0:03:00]} 4. O-O {[%clk 0:02:57]}  Nxe4 {[%clk 0:03:00]} 5. d4 {[%clk 0:02:56]}  Nd6 {[%clk 0:02:57]} 6. Bxc6 {[%clk 0:02:49]}  dxc6 {[%clk 0:02:57]} 7. dxe5 {[%clk 0:02:49]}  Nf5 {[%clk 0:02:58]} 8. Qe2 {[%clk 0:02:46]}  Nd4 {[%clk 0:02:33]} 9. Nxd4 {[%clk 0:02:44]}  Qxd4 {[%clk 0:02:34]} 10. Rd1 {[%clk 0:02:42]}  Qh4 {[%clk 0:01:51]} 11. Nc3 {[%clk 0:02:27]}  Bg4 {[%clk 0:01:45]} 12. f3 {[%clk 0:02:27]}  Be6 {[%clk 0:01:45]} 13. Be3 {[%clk 0:02:25]}  Be7 {[%clk 0:01:40]} 14. Rd4 {[%clk 0:02:24]}  Qh5 {[%clk 0:01:36]} 15. Bf2 {[%clk 0:02:22]}  O-O {[%clk 0:01:24]} 16. Rf1 {[%clk 0:02:17]}  Rfd8 {[%clk 0:01:13]} 17. Rfd1 {[%clk 0:01:50]}  Rxd4 {[%clk 0:01:12]} 18. Bxd4 {[%clk 0:01:46]}  Rd8 {[%clk 0:01:08]} 19. Ne4 {[%clk 0:01:46]}  b6 {[%clk 0:01:04]} 20. b3 {[%clk 0:01:44]}  c5 {[%clk 0:01:02]} 21. Bc3 {[%clk 0:01:42]}  Rxd1+ {[%clk 0:00:58]} 22. Qxd1 {[%clk 0:01:42]}  h6 {[%clk 0:00:57]} 23. a4 {[%clk 0:01:40]}  a5 {[%clk 0:00:54]} 24. Qd3 {[%clk 0:01:36]}  Qh4 {[%clk 0:00:16]} 25. Qb5 {[%clk 0:01:27]}  Kh7 {[%clk 0:00:14]} 26. Qc6 {[%clk 0:01:18]}  Bf5 {[%clk 0:00:11]} 27. Ng3 {[%clk 0:01:08]}  Bxc2 {[%clk 0:00:09]} 28. Qxc7 {[%clk 0:01:00]}  Bg5 {[%clk 0:00:09]} 29. Qxf7 {[%clk 0:00:54]}  Be3+ {[%clk 0:00:09]} 30. Kh1 {[%clk 0:00:53]}  Bf4 {[%clk 0:00:09]} 31. e6 {[%clk 0:00:51]}  Qg5 {[%clk 0:00:05]} 32. e7 {[%clk 0:00:34]}  Bxg3 {[%clk 0:00:02]} 33. hxg3 {[%clk 0:00:34]}  Qxg3 {[%clk 0:00:02]} 34. e8=Q {[%clk 0:00:31]} 1-0


[Site "https://www.chess.com"]

[Event "Titled Tuesday Blitz December 13 Early 2022"]
[White "Vega Gutierrez, Sabrina"]
[Black "Sanchez, Robert"]
[WhiteFideId "2219026"]
[BlackFideId "2034360"]
[WhiteElo "2261"]
[BlackElo "2348"]
[Result "0-1"]
[Round "06"]
[TimeControl "180+1"]
[Date "2022.12.14"]
[WhiteClock "0:01:18"]
[BlackClock "0:01:40"]

1. e4 {[%clk 0:03:00]}  d5 {[%clk 0:02:59]} 2. exd5 {[%clk 0:03:00]}  Qxd5 {[%clk 0:03:00]} 3. Nf3 {[%clk 0:02:59]}  Nc6 {[%clk 0:03:00]} 4. d4 {[%clk 0:02:58]}  e5 {[%clk 0:03:00]} 5. Nc3 {[%clk 0:02:46]}  Bb4 {[%clk 0:02:59]} 6. Bd2 {[%clk 0:02:37]}  Bxc3 {[%clk 0:02:58]} 7. Bxc3 {[%clk 0:02:35]}  e4 {[%clk 0:02:50]} 8. Ne5 {[%clk 0:02:34]}  Nxe5 {[%clk 0:02:32]} 9. dxe5 {[%clk 0:02:35]}  Qxd1+ {[%clk 0:02:28]} 10. Rxd1 {[%clk 0:02:36]}  Ne7 {[%clk 0:02:28]} 11. Bb5+ {[%clk 0:02:32]}  c6 {[%clk 0:02:28]} 12. Be2 {[%clk 0:02:30]}  Nd5 {[%clk 0:02:26]} 13. Bd4 {[%clk 0:02:26]}  O-O {[%clk 0:02:19]} 14. g3 {[%clk 0:02:23]}  Bh3 {[%clk 0:02:10]} 15. c4 {[%clk 0:02:15]}  Nb6 {[%clk 0:02:08]} 16. Kd2 {[%clk 0:02:11]}  Rfe8 {[%clk 0:01:55]} 17. Ke3 {[%clk 0:01:50]}  Nd7 {[%clk 0:01:51]} 18. Kxe4 {[%clk 0:01:45]}  Bg2+ {[%clk 0:01:50]} 19. Bf3 {[%clk 0:01:21]}  Bxh1 {[%clk 0:01:50]} 20. Bxh1 {[%clk 0:01:21]}  Rad8 {[%clk 0:01:44]} 21. f4 {[%clk 0:01:18]}  c5 {[%clk 0:01:40]} 0-1


[Site "https://www.chess.com"]

[Event "Titled Tuesday Blitz December 13 Early 2022"]
[White "Wagner, Dennis"]
[Black "Royal, Shreyas"]
[WhiteFideId "24650684"]
[BlackFideId "448869"]
[WhiteElo "2470"]
[BlackElo "2331"]
[Result "1/2-1/2"]
[Round "06"]
[TimeControl "180+1"]
[Date "2022.12.14"]
[WhiteClock "0:00:04"]
[BlackClock "0:00:36"]

1. d4 {[%clk 0:03:00]}  d5 {[%clk 0:02:57]} 2. c4 {[%clk 0:03:01]}  e6 {[%clk 0:02:57]} 3. Nc3 {[%clk 0:03:00]}  Nf6 {[%clk 0:02:57]} 4. cxd5 {[%clk 0:03:00]}  exd5 {[%clk 0:02:58]} 5. Bg5 {[%clk 0:02:57]}  Be7 {[%clk 0:02:53]} 6. e3 {[%clk 0:02:56]}  O-O {[%clk 0:02:53]} 7. Bd3 {[%clk 0:02:57]}  h6 {[%clk 0:02:50]} 8. Bf4 {[%clk 0:02:52]}  c5 {[%clk 0:02:48]} 9. h3 {[%clk 0:02:48]}  Nc6 {[%clk 0:02:48]} 10. Nf3 {[%clk 0:02:48]}  cxd4 {[%clk 0:02:47]} 11. exd4 {[%clk 0:02:49]}  Ne4 {[%clk 0:02:36]} 12. Nxe4 {[%clk 0:02:25]}  dxe4 {[%clk 0:02:37]} 13. Bxe4 {[%clk 0:02:26]}  Bb4+ {[%clk 0:02:36]} 14. Kf1 {[%clk 0:02:26]}  Re8 {[%clk 0:02:30]} 15. Bc2 {[%clk 0:02:25]}  Qf6 {[%clk 0:02:19]} 16. g3 {[%clk 0:02:01]}  Be6 {[%clk 0:02:05]} 17. Qd3 {[%clk 0:01:51]}  Bd5 {[%clk 0:01:57]} 18. Qh7+ {[%clk 0:01:16]}  Kf8 {[%clk 0:01:56]} 19. Ne5 {[%clk 0:01:16]}  Nxe5 {[%clk 0:01:47]} 20. Bxe5 {[%clk 0:01:13]}  Rxe5 {[%clk 0:01:44]} 21. dxe5 {[%clk 0:01:13]}  Qf3 {[%clk 0:01:41]} 22. Rh2 {[%clk 0:01:01]}  Bc5 {[%clk 0:01:41]} 23. Bb3 {[%clk 0:00:41]}  Be4 {[%clk 0:01:38]} 24. Qh8+ {[%clk 0:00:35]}  Ke7 {[%clk 0:01:38]} 25. Qxg7 {[%clk 0:00:16]}  Bd4 {[%clk 0:01:08]} 26. Qf6+ {[%clk 0:00:13]}  Qxf6 {[%clk 0:01:08]} 27. exf6+ {[%clk 0:00:13]}  Kxf6 {[%clk 0:01:09]} 28. f4 {[%clk 0:00:13]}  Bd3+ {[%clk 0:01:08]} 29. Ke1 {[%clk 0:00:12]}  Be3 {[%clk 0:01:02]} 30. Rd1 {[%clk 0:00:12]}  Ba6 {[%clk 0:01:02]} 31. Rd7 {[%clk 0:00:11]}  Rc8 {[%clk 0:01:02]} 32. Rxf7+ {[%clk 0:00:11]}  Kg6 {[%clk 0:01:03]} 33. f5+ {[%clk 0:00:11]}  Kg5 {[%clk 0:01:02]} 34. Rc2 {[%clk 0:00:10]}  Rd8 {[%clk 0:01:00]} 35. Rg7+ {[%clk 0:00:09]}  Kxf5 {[%clk 0:00:59]} 36. g4+ {[%clk 0:00:08]}  Kf4 {[%clk 0:00:58]} 37. Rg2 {[%clk 0:00:07]}  Rc8 {[%clk 0:00:57]} 38. Rf7+ {[%clk 0:00:07]}  Kg5 {[%clk 0:00:56]} 39. Rf5+ {[%clk 0:00:05]}  Kg6 {[%clk 0:00:55]} 40. Rc2 {[%clk 0:00:05]}  Rd8 {[%clk 0:00:55]} 41. Rc7 {[%clk 0:00:04]}  Bb6 {[%clk 0:00:53]} 42. Bf7+ {[%clk 0:00:04]}  Kg7 {[%clk 0:00:53]} 43. Bc4+ {[%clk 0:00:04]}  Bxc7 {[%clk 0:00:53]} 44. Bxa6 {[%clk 0:00:04]}  bxa6 {[%clk 0:00:51]} 45. Ke2 {[%clk 0:00:05]}  Rb8 {[%clk 0:00:51]} 46. b3 {[%clk 0:00:05]}  Rb5 {[%clk 0:00:52]} 47. Rf3 {[%clk 0:00:05]}  Rc5 {[%clk 0:00:51]} 48. Kd3 {[%clk 0:00:05]}  Be5 {[%clk 0:00:51]} 49. Ke4 {[%clk 0:00:05]}  Bf6 {[%clk 0:00:51]} 50. Rd3 {[%clk 0:00:06]}  Rc7 {[%clk 0:00:50]} 51. Kf5 {[%clk 0:00:06]}  Rc5+ {[%clk 0:00:49]} 52. Kf4 {[%clk 0:00:06]}  Be5+ {[%clk 0:00:43]} 53. Ke4 {[%clk 0:00:06]}  Kf6 {[%clk 0:00:43]} 54. Rd7 {[%clk 0:00:07]}  Rc2 {[%clk 0:00:42]} 55. Rxa7 {[%clk 0:00:06]}  Rxa2 {[%clk 0:00:43]} 56. Rh7 {[%clk 0:00:05]}  Re2+ {[%clk 0:00:41]} 57. Kf3 {[%clk 0:00:05]}  Rb2 {[%clk 0:00:37]} 58. Rxh6+ {[%clk 0:00:06]}  Kg5 {[%clk 0:00:37]} 59. Rxa6 {[%clk 0:00:07]}  Rxb3+ {[%clk 0:00:38]} 60. Ke4 {[%clk 0:00:07]}  Bh2 {[%clk 0:00:38]} 61. Ra5+ {[%clk 0:00:07]}  Kg6 {[%clk 0:00:38]} 62. h4 {[%clk 0:00:06]}  Rh3 {[%clk 0:00:36]} 63. h5+ {[%clk 0:00:05]}  Kh6 {[%clk 0:00:37]} 64. Ra6+ {[%clk 0:00:05]}  Kh7 {[%clk 0:00:36]} 65. Ra7+ {[%clk 0:00:03]}  Kh6 {[%clk 0:00:35]} 66. Ra6+ {[%clk 0:00:03]}  Kh7 {[%clk 0:00:35]} 67. Ra7+ {[%clk 0:00:04]}  Kh6 {[%clk 0:00:36]} 68. Ra6+ {[%clk 0:00:04]} 1/2-1/2


[Site "https://www.chess.com"]

[Event "Titled Tuesday Blitz December 13 Early 2022"]
[White "Walentukiewicz, Michal"]
[Black "Shapiro, Daniel"]
[WhiteFideId "1126903"]
[BlackFideId "2001780"]
[WhiteElo "2028"]
[BlackElo "2365"]
[Result "1-0"]
[Round "06"]
[TimeControl "180+1"]
[Date "2022.12.14"]
[WhiteClock "0:01:43"]
[BlackClock "0:00:04"]

1. g3 {[%clk 0:03:00]}  Nf6 {[%clk 0:02:59]} 2. Bg2 {[%clk 0:03:00]}  d5 {[%clk 0:02:59]} 3. Nf3 {[%clk 0:03:00]}  e6 {[%clk 0:02:59]} 4. O-O {[%clk 0:03:01]}  Be7 {[%clk 0:02:59]} 5. c4 {[%clk 0:03:02]}  c6 {[%clk 0:02:57]} 6. cxd5 {[%clk 0:03:03]}  cxd5 {[%clk 0:02:55]} 7. d3 {[%clk 0:03:02]}  Nc6 {[%clk 0:02:51]} 8. Nc3 {[%clk 0:03:02]}  O-O {[%clk 0:02:47]} 9. e4 {[%clk 0:03:02]}  dxe4 {[%clk 0:02:19]} 10. dxe4 {[%clk 0:03:02]}  Qxd1 {[%clk 0:02:03]} 11. Rxd1 {[%clk 0:03:03]}  Rd8 {[%clk 0:02:03]} 12. Bf4 {[%clk 0:03:00]}  Bd7 {[%clk 0:02:00]} 13. e5 {[%clk 0:02:57]}  Ne8 {[%clk 0:01:51]} 14. Ne4 {[%clk 0:02:52]}  h6 {[%clk 0:01:45]} 15. Be3 {[%clk 0:02:52]}  Nb4 {[%clk 0:01:38]} 16. Bc5 {[%clk 0:02:46]}  Bxc5 {[%clk 0:01:31]} 17. Nxc5 {[%clk 0:02:46]}  Bc6 {[%clk 0:01:32]} 18. Nd4 {[%clk 0:02:44]}  Bxg2 {[%clk 0:01:28]} 19. Kxg2 {[%clk 0:02:45]}  Rxd4 {[%clk 0:01:22]} 20. Rxd4 {[%clk 0:02:44]}  Nc2 {[%clk 0:01:22]} 21. Rad1 {[%clk 0:02:44]}  Nxd4 {[%clk 0:01:22]} 22. Rxd4 {[%clk 0:02:45]}  b6 {[%clk 0:01:17]} 23. Ne4 {[%clk 0:02:44]}  Rc8 {[%clk 0:01:10]} 24. Rd7 {[%clk 0:02:43]}  a5 {[%clk 0:00:48]} 25. Rb7 {[%clk 0:02:42]}  f5 {[%clk 0:00:32]} 26. exf6 {[%clk 0:02:40]}  Nxf6 {[%clk 0:00:32]} 27. Nxf6+ {[%clk 0:02:36]}  gxf6 {[%clk 0:00:33]} 28. Rxb6 {[%clk 0:02:37]}  Kf7 {[%clk 0:00:34]} 29. Rb5 {[%clk 0:02:35]}  Rc2 {[%clk 0:00:34]} 30. h4 {[%clk 0:02:25]}  e5 {[%clk 0:00:32]} 31. Rb7+ {[%clk 0:02:24]}  Ke6 {[%clk 0:00:31]} 32. a4 {[%clk 0:02:18]}  Kf5 {[%clk 0:00:27]} 33. Rb5 {[%clk 0:02:17]}  Kg4 {[%clk 0:00:22]} 34. b4 {[%clk 0:02:10]}  e4 {[%clk 0:00:18]} 35. Kf1 {[%clk 0:02:06]}  axb4 {[%clk 0:00:16]} 36. Rxb4 {[%clk 0:02:05]}  f5 {[%clk 0:00:16]} 37. Kg2 {[%clk 0:01:57]}  Ra2 {[%clk 0:00:13]} 38. a5 {[%clk 0:01:49]}  Rxa5 {[%clk 0:00:12]} 39. f3+ {[%clk 0:01:49]}  Kh5 {[%clk 0:00:12]} 40. fxe4 {[%clk 0:01:50]}  fxe4 {[%clk 0:00:12]} 41. Rxe4 {[%clk 0:01:51]}  Kg6 {[%clk 0:00:12]} 42. Rb4 {[%clk 0:01:49]}  Ra6 {[%clk 0:00:10]} 43. g4 {[%clk 0:01:47]}  Rc6 {[%clk 0:00:10]} 44. Kf3 {[%clk 0:01:47]}  Rc3+ {[%clk 0:00:10]} 45. Kf4 {[%clk 0:01:47]}  Rc6 {[%clk 0:00:10]} 46. Rd4 {[%clk 0:01:43]}  Rb6 {[%clk 0:00:10]} 47. Ke5 {[%clk 0:01:43]}  Rb5+ {[%clk 0:00:10]} 48. Rd5 {[%clk 0:01:43]}  Rb6 {[%clk 0:00:09]} 49. Rd6+ {[%clk 0:01:43]}  Rxd6 {[%clk 0:00:09]} 50. Kxd6 {[%clk 0:01:44]}  Kf6 {[%clk 0:00:09]} 51. Kd5 {[%clk 0:01:44]}  Kf7 {[%clk 0:00:08]} 52. Ke5 {[%clk 0:01:45]}  Ke7 {[%clk 0:00:08]} 53. h5 {[%clk 0:01:40]}  Kf7 {[%clk 0:00:06]} 54. Kf5 {[%clk 0:01:40]}  Kg7 {[%clk 0:00:03]} 55. Ke6 {[%clk 0:01:41]}  Kg8 {[%clk 0:00:02]} 56. Kf6 {[%clk 0:01:41]}  Kh7 {[%clk 0:00:02]} 57. Kf7 {[%clk 0:01:42]}  Kh8 {[%clk 0:00:02]} 58. Kg6 {[%clk 0:01:43]}  Kg8 {[%clk 0:00:03]} 59. Kxh6 {[%clk 0:01:43]}  Kf8 {[%clk 0:00:04]} 1-0


[Site "https://www.chess.com"]